{"text_format":"1","workbook":"xlsx","n_sheets":3,"sheets":["Krok 1","Krok 2","Krok 3"],"not_rendered":{"charts":0,"images":2,"macros":1,"external_links":1,"defined_names":8,"comments":0,"pivot_tables":0},"unopened":[],"bounds":{"document_bytes":16777216,"sheet_cells":100000,"rows_first":2000,"rows_last":500,"rows_between":2000,"halvings":0,"cell_chars":16384,"cell_head_chars":4096},"cells_cut":0,"cells_raw":0,"read":"whole","date_system":"1900"}

{"sheet":"Krok 1","index":0,"n_rows":10,"n_cols":3,"rows_kept":10,"cut":false,"hidden":false,"merged":[[1,1,1,5]]}
[]
[null,"Konfigurator oferty SPE w ramach Dotacji celowej dla uczniów posiadających orzeczenie o potrzebie kształcenia  specjalnego"]
[]
[null,null,"Imię i nazwisko"]
[]
[null,null,"Adres szkoły"]
[]
[null,null,"Dane kontaktowe"]
[]
[null,null,"Dodatkowe informacje/notatki"]

{"sheet":"Krok 2","index":1,"n_rows":212,"n_cols":7,"rows_kept":212,"cut":false,"hidden":false,"merged":[[206,0,211,0],[1,0,1,6],[2,0,2,6],[4,0,4,6],[6,0,8,0],[6,4,8,4],[6,5,8,5],[6,6,8,6],[10,6,11,6],[13,0,14,0],[13,4,14,4],[13,6,14,6],[18,0,18,6],[16,6,17,6],[16,5,17,5],[16,0,17,0],[130,0,131,0],[134,0,139,0],[141,0,142,0],[32,0,32,6],[29,0,29,6],[37,0,37,5],[39,0,41,0],[42,0,47,0],[48,0,50,0],[51,0,56,0],[57,0,59,0],[60,0,65,0],[66,0,68,0],[69,0,73,0],[74,0,79,0],[80,0,82,0],[143,0,145,0],[147,0,149,0],[150,0,157,0],[158,0,160,0],[163,0,164,0],[166,0,168,0],[169,0,175,0],[176,0,187,0],[188,0,193,0],[194,0,205,0],[3,0,3,6],[111,0,113,0],[114,0,116,0],[117,0,118,0],[123,0,129,0],[119,0,122,0],[83,0,88,0],[89,0,91,0],[92,0,99,0],[100,0,102,0],[103,0,110,0],[10,0,11,0],[10,4,11,4],[10,5,11,5],[16,4,17,4],[13,5,14,5]]}
[]
["Szkoła Podstawowa Specjalna - SPE"]
["Propozycje pakietów"]
["Ceny publikacji w Zestawach są dostosowane, aby umożliwić wykorzystanie pełnej kwoty dotacji"]
["Klasy 1–3. Propozycje materiałów ćwiczeniowych \n(wartość dotacji dla uczniów z niepełnosprawnością intelektualną w stopniu umiarkowanym - 152,46 zł)"]
["Zestaw","Tytuł","KH","Cena  pojedynczego egz.","Cena w zestawie","Liczba egz.","Wartość"]
["Zestaw 28","PEWNY START. NOWE CZTERY PORY ROKU Karty pracy. Jesień","085932",42.46,{"$f":"D7+D8+D9","v":152.46},null,{"$f":"E7*F7","v":0}]
[null,"PEWNY START. NOWE CZTERY PORY ROKU Karty pracy. Wiosna, lato","085934",55]
[null,"PEWNY START. NOWE CZTERY PORY ROKU Karty pracy. Zima","085933",55]
[]
["Zestaw 29","Pewny start. A. Zestaw. Karty pracy. Jesień, zima, Wiosna, lato","086567",75.459999999999994,{"$f":"D11+D12","v":152.45999999999998},null,{"$f":"E11*F11","v":0}]
[null,"Pewny start. A. Zestaw. Karty pracy. Czytanie, pisanie, Plastyka, grafomotoryka","086564",77]
[]
["Zestaw 30","PEWNY START. B Zestaw Karty pracy. Czytanie, pisanie. Plastyka, grafomotoryka","086624",75.459999999999994,{"$f":"D14+D15","v":152.45999999999998},null,{"$f":"E14*F14","v":0}]
[null,"PEWNY START. B Zestaw Zestaw. Karty pracy. Jesień, zima, Wiosna, lato","086627",77]
[]
["Zestaw 31","Pewny start. C Pakiet ćwiczeniowy Czytanie, pisanie. Matematyka","086684",75.459999999999994,{"$f":"D18+D17","v":152.45999999999998},null,{"$f":"E17*F17","v":0}]
[null,"Pewny start. C Pakiet ćwiczeniowy Jesień, zima, wiosna, lato","086687",77]
["Klasy 4–8. Propozycje materiałów ćwiczeniowych \n(wartość dotacji dla uczniów z niepełnosprawnością intelektualną w stopniu umiarkowanym - 76,24 zł)"]
["Zestaw","Tytuł","KH","Cena  pojedynczego egz.","Cena w zestawie","Liczba egz.","Wartość"]
["Zestaw 32","Pewny start. D  Zestaw. Karty pracy. Jesień, zima, Wiosna, lato","086586",76.239999999999995,76.239999999999995,null,{"$f":"E21*F21","v":0}]
[]
["Zestaw 33","PEWNY START. E Zestaw. Karty pracy. Jesień, zima, Wiosna, lato","086647",76.239999999999995,76.239999999999995,null,{"$f":"E23*F23","v":0}]
[]
["Zestaw 34","Pewny start. G Zestaw. Karty pracy. Jesień, zima, Wiosna, lato","086609",76.239999999999995,76.239999999999995,null,{"$f":"E25*F25","v":0}]
[]
["Zestaw 35","PEWNY START. H Zestaw. Karty pracy. Jesień, zima, Wiosna, lato","086669",76.239999999999995,76.239999999999995,null,{"$f":"E27*F27","v":0}]
[]
["Zestaw 36","Pewny start. Poziom F. Pakiet ćwiczeniowy. Zestaw karty pracy: jesień, zima, wiosna, lato.","086707",77,76.239999999999995,null,{"$f":"E29*F29","v":0}]
["Klasa 3. Propozycje materiałów edukacyjnych \n(wartość dotacji dla uczniów z niepełnosprawnością intelektualną w stopniu umiarkowanym - 196,02 zł)"]
["Zestaw","Tytuł","KH","Cena  pojedynczego egz.","Cena w zestawie","Liczba egz.","Wartość"]
["Zestaw 37","Pewny start. C Pakiet edukacyjny zestaw moja książka. Codziennik. Funkcjonowanie,komunikacja,kreatywność","086681",196.02,196.02,null,{"$f":"F32*E32","v":0}]
["Klasa 6. Propozycje materiałów edukacyjnych \n(wartość dotacji dla uczniów z niepełnosprawnością intelektualną w stopniu umiarkowanym - 471,24 zł)"]
["Zestaw","Tytuł","KH","Cena  pojedynczego egz.","Cena w zestawie","Liczba egz.","Wartość"]
["Zestaw 38","Pewny start. Poziom F. Pakiet edukacyjny. Zestaw moja książka, Codziennik. Funkcjonowanie 1-2, Komunikacja, Kreatywność","086701",471.24,471.24,null,{"$f":"F35*E35","v":0}]
[]
[]
["PEŁNA LISTA PUBLIKACJI "]
["Rodzaj","Tytuł","KH","Cena  pojedynczego egz.","Ilość egz.","Wartość"]
["MATERIAŁY EDUKACYJNE","Pewny start. A Zestaw. Moja książka, Codziennik szkolny Funkcjonowanie, komunikacja, kreatywność","086561",197,null,{"$f":"E40*D40","v":0}]
[null,"Pewny start. A Moja książka","086562",110,null,{"$f":"E41*D41","v":0}]
[null,"Pewny start. A Codziennik szkolny Funkcjonowanie, komunikacja, kreatywność","086563",95,null,{"$f":"E42*D42","v":0}]
["MATERIAŁY ĆWICZENIOWE","Pewny start. A Zestaw. Karty pracy. Jesień, zima, Wiosna, lato","086567",77,null,0]
[null,"Pewny start. A Zestaw. Karty pracy. Czytanie, pisanie, Plastyka, grafomotoryka","086564",77,null,0]
[null,"Pewny start. A Karty pracy Jesień, zima","086568",44,null,0]
[null,"Pewny start. A Karty pracy Wiosna, lato","086569",44,null,0]
[null,"Pewny start. A Karty pracy Pisanie, czytanie","086565",44,null,0]
[null,"Pewny start. A Karty pracy Plastyka, grafomotoryka","086566",44,null,0]
["MATERIAŁY EDUKACYJNE","Pewny start. B Zestaw Moja książka. Codziennik. Funkcjonowanie, komunikacja, kreatywność","086621",197,null,0]
[null,"Pewny start. B Moja książka","086622",110.00000000000001,null,0]
[null,"Pewny start. B Codziennik szkolny. Funkcjonowanie, komunikacja, kreatywność","086623",95,null,0]
["MATERIAŁY ĆWICZENIOWE","Pewny start. B Zestaw Karty pracy. Czytanie, pisanie. Plastyka, grafomotoryka","086624",77,null,0]
[null,"Pewny start. B Zestaw Zestaw. Karty pracy. Jesień, zima, Wiosna, lato","086627",77,null,0]
[null,"Pewny start. B Karty pracy Jesień, zima","086628",44,null,0]
[null,"Pewny start. B Karty pracy  Wiosna, lato","086629",44,null,0]
[null,"Pewny start. B Karty pracy Pisanie, czytanie","086625",44,null,0]
[null,"Pewny start. B Karty pracy Plastyka, grafomotoryka","086626",44,null,0]
["MATERIAŁY EDUKACYJNE","Pewny start. C Pakiet edukacyjny zestaw moja książka. Codziennik. Funkcjonowanie,komunikacja,kreatywność","086681",197,null,0]
[null,"Pewny start. C Moja książka","086682",110,null,0]
[null,"Pewny start. C Codziennik fun/kom/kre","086683",95,null,0]
["MATERIAŁY ĆWICZENIOWE","Pewny start. C Pakiet ćwiczeniowy 1 czytanie, pisanie, plastyka,grafomotoryka","086684",77,null,0]
[null,"Pewny start. C Pakiet ćwiczeniowy 2-Jesień, zima, wiosna, lato","086687",77,null,0]
[null,"Pewny start. C Karty pracy  jesień/zima","086688",44,null,0]
[null,"Pewny start. C Karty pracy 2 wiosna/lato","086689",44,null,0]
[null,"Pewny start. C Karty pracy pisanie/czytanie","086685",44,null,0]
[null,"Pewny start. C Karty pracy matematyka","086686",44,null,0]
["MATERIAŁY EDUKACYJNE","Pewny start. D Zestaw Moja książka, Codziennik szkolny. Funkcjonowanie, Codziennik szkolny. Komunikacja, Codziennik szkolny. Kreatywność ","086581",380,null,0]
[null,"Pewny start. D Moja książka","086582",112,null,0]
[null,"Pewny start. D Codziennik szkolny. Funkcjonowanie","086583",95,null,0]
["MATERIAŁY ĆWICZENIOWE","Pewny start. D Codziennik szkolny. Komunikacja","086584",95,null,0]
[null,"Pewny start. D Codziennik szkolny. Kreatywność","086585",95,null,0]
[null,"Pewny start. D  Zestaw. Karty pracy. Jesień, zima, Wiosna, lato","086586",77,null,0]
[null,"Pewny start. D Karty pracy.  Jesień, zima","086587",44,null,0]
[null,"Pewny start. D Karty pracy.  Wiosna, lato","086588",44,null,0]
["MATERIAŁY EDUKACYJNE","Pewny start. E Zestaw Moja książka, Codziennik. Funkcjonowanie 1-2, Komunikacja, Kreatywność","086641",495,null,0]
[null,"Pewny start. E Moja książka","086642",130,null,0]
[null,"Pewny start. E Cdziennik. Funkcjonowanie 1","086643",95,null,0]
[null,"Pewny start. E Codziennik. Funkcjonowanie 2","086644",95,null,0]
[null,"Pewny start. E Codziennik. Komunikacja","086645",95,null,0]
[null,"Pewny start. E Codziennik. Kreatywność","086646",95,null,0]
["MATERIAŁY ĆWICZENIOWE","Pewny start. E Zestaw. Karty pracy. Jesień, zima, Wiosna, lato","086647",77,null,0]
[null,"Pewny start. E Karty pracy. Jesień, zima","086648",40,null,0]
[null,"Pewny start. E Karty pracy. Wiosna, lato","086649",40,null,0]
["MATERIAŁY EDUKACYJNE","Pewny start. F Pakiet edukacyjny. Zestaw moja książka, Codziennik. Funkcjonowanie 1-2, Komunikacja, Kreatywność","086701",495,null,0]
[null,"Pewny start. F Moja książka","086702",130,null,0]
[null,"Pewny start. F Cdziennik. Funkcjonowanie 1","086703",95,null,0]
[null,"Pewny start. F Codziennik. Funkcjonowanie 2","086704",95,null,0]
[null,"Pewny start. F Codziennik. Komunikacja","086705",95,null,0]
[null,"Pewny start. F Codziennik. Kreatywność","086706",95,null,0]
["MATERIAŁY ĆWICZENIOWE","Pewny start. F Pakiet ćwiczeniowy. Zestaw karty pracy: jesień, zima, wiosna, lato","086707",77,null,0]
[null,"Pewny start. F Karty pracy. Jesień/zima","086708",40,null,0]
[null,"Pewny start. F Karty pracy. Wiosna/lato","086709",40,null,0]
["MATERIAŁY EDUKACYJNE","Pewny start. G Zestaw Moja książka. Codziennik szkolny. Funkcjonowanie 1-3, Komunikacja 1-2, Kreatywność ","086601",650,null,0]
[null,"Pewny start. G Moja książka","086602",112,null,0]
[null,"Pewny start. G Codziennik szkolny. Funkcjonowanie 1","086603",95,null,0]
[null,"Pewny start. G Codziennik szkolny. Funkcjonowanie 2","086604",95,null,0]
[null,"Pewny start. G Codziennik szkolny. Funkcjonowanie 3","086605",95,null,0]
[null,"Pewny start. G Codziennik szkolny. Komunikacja 1","086606",95,null,0]
[null,"Pewny start. G Codziennik szkolny. Komunikacja 2","086607",95,null,0]
[null,"Pewny start. G Codziennik szkolny. Kreatywność","086608",95,null,0]
["MATERIAŁY ĆWICZENIOWE","Pewny start. G Zestaw. Karty pracy. Jesień, zima, Wiosna, lato","086609",77,null,0]
[null,"Pewny start. G Karty pracy  Jesień, zima","086610",39,null,0]
[null,"Pewny start. G Karty pracy  Wiosna, lato","086611",39,null,0]
["MATERIAŁY EDUKACYJNE","Pewny start. H Zestaw Moja książka, Codziennik. Funkcjonowanie 1-3, Komunikacja1-2, Kreatywność","086661",690,null,0]
[null,"Pewny start. H Moja książka","086662",130,null,0]
[null,"Pewny start. H Codziennik funkcjonowanie 1","086663",95,null,0]
[null,"Pewny start. H Codziennik funkcjonowanie 2","086664",95,null,0]
[null,"Pewny start. H Codziennik funkcjonowanie 3","086665",95,null,0]
[null,"Pewny start. H Codziennik komunikacja 1","086666",95,null,0]
[null,"Pewny start. H Codziennik komunikacja 2","086667",95,null,0]
[null,"Pewny start. H Codziennik kreatywność","086668",95,null,0]
["MATERIAŁY ĆWICZENIOWE","Pewny start. H Zestaw. Karty pracy. Jesień, zima, Wiosna, lato","086669",77,null,0]
[null,"Pewny start. H Karty pracy  jesień/zima","086670",40,null,0]
[null,"Pewny start. H Karty pracy  wiosna/lato","086671",40,null,0]
["MATERIAŁY EDUKACYJNE / MATERIAŁY ĆWICZENIOWE","Akademia pomysłów. Zajęcia wyrównawcze Zestaw","085611",499,null,0]
[null,"Akademia pomysłów. Uczeń z  niepełnosprawnością intelektualną w stopniu lekkim Zestaw","085591",499,null,0]
[null,"Akademia pomysłów. Uczeń ze spektrum autyzmu 1-3 Zestaw","085551",499,null,0]
["MATERIAŁY EDUKACYJNE","Pewny start. Nowe cztery pory roku Karty matematyczne. Liczby","085938",47,null,0]
[null,"Pewny start. Nowe cztery pory roku Karty do nauki czytania i pisania. Litery i wyrazy","085937",60,null,0]
["MATERIAŁY ĆWICZENIOWE","Pewny start. Nowe cztery pory roku Karty zadaniowe. Umiem to zrobić","085936",43,null,0]
[null,"Pewny start. Nowe cztery pory roku Karty pracy. Jesień","085932",55,null,0]
[null,"Pewny start. Nowe cztery pory roku Karty pracy. Wiosna, lato","085934",55,null,0]
[null,"Pewny start. Nowe cztery pory roku Karty pracy. Zima","085933",55,null,0]
["MATERIAŁY ĆWICZENIOWE","Funkcje psychofizyczne. Karty pracy. Grafomotoryka. Poziom 1","086531",60,null,{"$f":"E124*D124","v":0}]
[null,"Funkcje psychofizyczne. Karty pracy. Koncentracja uwagi. Poziom 1","086532",60,null,0]
[null,"Funkcje psychofizyczne. Karty pracy. Percepcja wzrokowa. Poziom 1","086533",60,null,0]
[null,"Funkcje psychofizyczne. Karty pracy. Percepcja słuchowa. Poziom 1","086534",60,null,0]
[null,"Funkcje psychofizyczne.Karty pracy. Orientacja przestrzenna. Poziom 1","086535",60,null,0]
[null,"Funkcje psychofizyczne. Karty pracy. Funkcjonowanie społeczne. Poziom 1","086536",60,null,0]
[null,"Funkcje psychofizyczne. Karty pracy. Wypowiedzi ustne i pisemne. Poziom1","086537",60,null,0]
["MATERIAŁY EDUKACYJNE","PWN Akademia pisania. Układanki obrazkowo-wyrazowe. Poznaję i utrwalam poprawną wpisownię wyrazów ó/u","049141",44,null,0]
[null,"PWN Akademia pisania. Układanki obrazkowo-wyrazowe. Poznaję i utrwalam poprawną wpisownię wyrazów rz/ż","049142",44,null,0]
["MATERIAŁY EDUKACYJNE","Pewny start. Zaśpiewajmy razem. Śpiewnik z symbolami PCS","049741",90,null,0]
["MATERIAŁY ĆWICZENIOWE","PWN Pewny start. Zaśpiewajmy razem. Zeszyt ćwiczeń Zeszyt plastyczno- grafomotoryczny do śpiewnika z symbolami PCS","049742",30,null,0]
["MATERIAŁY ĆWICZENIOWE","Funkcje psychofizyczne. Funkcjonowanie społeczne 2","086542",60,null,0]
[null,"Funkcje psychofizyczne. Koncentracja uwagi 2","086538",60,null,0]
[null,"Funkcje psychofizyczne.Orientacja przestrzenna 2","086541",60,null,0]
[null,"Funkcje psychofizyczne. Percepcja słuchowa 2","086540",60,null,0]
[null,"Funkcje psychofizyczne.Percepcja wzrokowa 2","086539",60,null,0]
[null,"Funkcje psychofizyczne.Wypowiedzi ustne i pisemne 2","086543",60,null,0]
["MATERIAŁY EDUKACYJNE","Pewny start. Mój dobry rok. Materiał edukacyjny. Lubię jesień, Lubię zimę, Lubię wiosnę, lubię lato","085831",83,null,0]
["MATERIAŁY ĆWICZENIOWE","Pewny start. Mój dobry rok. Karty pracy. Czytanie i pisanie","085832",52,null,0]
[null,"PWN Pewny start. Mój dobry rok. Plansze konturowe","049281",63,null,0]
["MATERIAŁY EDUKACYJNE","Pewny start. Świat wokół mnie. Wycinanki. Emocje","086193",43,null,0]
[null,"Pewny start. Świat wokół mnie. Historyjki obrazkowe. Układam, opowiadam","086192",56,null,0]
[null,"Pewny start. Świat wokół mnie. Czytanki. Ola, Adam i ich świat","086195",43,null,0]
["MATERIAŁY EDUKACYJNE","Pewny start. Wokół pór roku. Czytanki. Rozmowy Oli i Adama","086265",43,null,0]
["MATERIAŁY ĆWICZENIOWE","Pewny start. Wokół pór roku. Karty pracy. Wokół jesieni","086262",39,null,0]
[null,"Pewny start. Wokół pór roku. Karty pracy. Wokół wiosny, wokół lata","086264",39,null,0]
[null,"Pewny start. Wokół pór roku. Karty pracy. Wokół zimy","086263",39,null,0]
["MATERIAŁY ĆWICZENIOWE","Pewny start. Moja matematyka. Zestaw Kart pracy Jesień, Zima, Wiosna,lato. Poziom A","086481",154,null,0]
[null,"Pewny start. Moja matematyka. Karty pracy. Jesień. Poziom A","086482",55,null,0]
[null,"Pewny start. Moja matematyka. Karty pracy. Zima. Poziom A","086483",55,null,0]
[null,"Pewny start. Moja matematyka. Karty pracy. Wiosna, lato. Poziom A","086484",55,null,0]
[null,"Pewny start. Moja matematyka. Zestaw Kart pracy. Jesień, Zima, Wiosna,lato. Poziom B","086485",154,null,0]
[null,"Pewny start. Moja matematyka. Karty pracy. Jesień. Poziom B","086486",55,null,0]
[null,"Pewny start. Moja matematyka. Karty pracy. Zima. Poziom B","086487",55,null,0]
[null,"Pewny start. Moja matematyka. Karty pracy. Wiosna, lato. Poziom B","086488",55,null,0]
["MATERIAŁY ĆWICZENIOWE","Pewny start. Moja codzienność. Karty pracy. Jesień","085811",42,null,0]
[null,"Pewny start. Moja codzienność. Karty pracy. Wiosna, lato","085813",42,null,0]
[null,"Pewny start. Moja codzienność. Karty pracy. Zima","085812",42,null,0]
["MATERIAŁY EDUKACYJNE / MATERIAŁY ĆWICZENIOWE","Akademia pomysłów. Uczeń ze spektrum autyzmu 4-8 Zestaw","085571",499,null,0]
["MATERIAŁY EDUKACYJNE","Pewny start. Odkrywam świat. Materiał edukacyjny. Moja książka. PoziomA","086112",96,null,0]
["MATERIAŁY ĆWICZENIOWE","Pewny start. Odkrywam świat. Moje ćwiczenia. Poziom A","086111",52,null,0]
[null,"Pewny start. Odkrywam świat. Moje ćwiczenia. Poziom B","086113",52,null,0]
["MATERIAŁY ĆWICZENIOWE","Pewny start. Poznać i zrozumieć uczucia. Karty pracy. Nasz wewnętrzny świat","086142",39,null,0]
["MATERIAŁY EDUKACYJNE","Pewny start. Poznać i zrozumieć uczucia. Poradnik pozytywny. Jak sobie radzić z uczuciami","086147",62,null,0]
[null,"Pewny start. Poznać i zrozumieć uczucia. Historyjki społeczne. Uczucia w nas i w relacjach ze światem","086146",56,null,0]
[null,"Pewny start. Poznać i zrozumieć uczucia. Historyjki obrazkowe. Co by było, gdyby","086148",83,null,0]
["MATERIAŁY EDUKACYJNE","PWN Pewny start. Aktywni zawodowo. Materiał edukacyjny. ABC rękodzieła","049157",75,null,0]
[null,"PWN Pewny start. Aktywni zawodowo. Materiał edukacyjny. Pracuję w biurze","049164",75,null,0]
[null,"PWN Pewny start. Aktywni zawodowo. Materiał edukacyjny. Podaję do stołu","049169",75,null,0]
[null,"PWN Pewny start. Aktywni zawodowo. Materiał edukacyjny. ABC pracy w kuchni","049167",75,null,0]
[null,"PWN Pewny start. Aktywni zawodowo. Materiał edukacyjny. Obsługa AGD  w kuchni","049168",75,null,0]
[null,"PWN Pewny start. Aktywni zawodowo. Plansze magnetyczne. Kalendarz ogrodnika","049177",200,null,0]
[null,"Pewny start. Aktywni zawodowo. Prace porządkowe. Czynności porządkowe. Materiał edukacyjny","085713",75,null,0]
["MATERIAŁY ĆWICZENIOWE","Pewny start. Aktywni zawodowo. Karty pracy 1. Rękodzieło","085705",50,null,0]
[null,"Pewny start. Aktywni zawodowo. Karty pracy 2. Rękodzieło","085706",50,null,0]
[null,"Pewny start. Aktywni zawodowo. Karty pracy 1. Prace biurowe","085703",50,null,0]
[null,"Pewny start. Aktywni zawodowo. Karty pracy 2. Prace biurowe","085704",50,null,0]
[null,"Pewny start. Aktywni zawodowo. Karty pracy 1. Zajęcia kulinarne","085707",50,null,0]
[null,"Pewny start. Aktywni zawodowo. Karty pracy 2. Zajęcia kulinarne","085708",50,null,0]
[null,"Pewny start. Aktywni zawodowo. Karty pracy 3. Zajęcia kulinarne","049172",50,null,0]
[null,"Pewny start. Aktywni zawodowo. Karty pracy 1. Ogrodnictwo","085701",50,null,0]
[null,"Pewny start. Aktywni zawodowo. Karty pracy 2. Ogrodnictwo","085702",50,null,0]
[null,"Pewny start. Aktywni zawodowo. Prace porządkowe. Karty pracy 1","085710",50,null,0]
[null,"Pewny start. Aktywni zawodowo. Prace porządkowe. Karty pracy 2","085711",50,null,0]
[null,"Pewny start. Aktywni zawodowo. Prace porządkowe. Karty pracy 3","085712",50,null,{"$f":"E188*D188","v":0}]
["MATERIAŁY ĆWICZENIOWE","Funkcje psychofizyczne. Karty pracy. Koncentracja uwagi. Poziom 3","086544",60,null,0]
[null,"Funkcje psychofizyczne. Karty pracy. Percepcja wzrokowa. Poziom 3","086545",60,null,0]
[null,"Funkcje psychofizyczne. Karty pracy. Percepcja słuchowa. Poziom 3","086546",60,null,0]
[null,"Funkcje psychofizyczne. Karty pracy. Orientacja przestrzenna. Poziom 3","086547",60,null,0]
[null,"Funkcje psychofizyczne. Karty pracy. Funkcjonowanie społeczne. Poziom 3","086548",60,null,0]
[null,"Funkcje psychofizyczne. Karty pracy. Wypowiedzi ustne i pisemne. Poziom 3","086549",60,null,0]
["MATERIAŁY EDUKACYJNE","PWN Pewny start. Instrukcje zachowań. Asertywność","049283",43,null,0]
[null,"PWN Pewny start. Instrukcje zachowań. Bezpieczeństwo na drodze","049284",43,null,0]
[null,"PWN Pewny start. Instrukcje zachowań. Choroba","049286",43,null,0]
[null,"PWN Pewny start. Instrukcje zachowań. Czas wolny","049288",43,null,0]
[null,"PWN Pewny start. Instrukcje zachowań. Dbam o swoje ciało","049289",43,null,0]
[null,"PWN Pewny start. Instrukcje zachowań. Jedzenie","049292",43,null,0]
[null,"PWN Pewny start. Instrukcje zachowań. Jestem dorosły","049293",43,null,0]
[null,"PWN Pewny start. Instrukcje zachowań. Kawiarnia","049294",43,null,0]
[null,"PWN Pewny start. Instrukcje zachowań. Kim jestem?","049295",43,null,0]
[null,"PWN Pewny start. Instrukcje zachowań. Pory roku","049300",43,null,0]
[null,"PWN Pewny start. Instrukcje zachowań. Ubranie","049301",43,null,0]
[null,"PWN Pewny start. Instrukcje zachowań. Zakupy","049302",43,null,0]
["OUTLET","PWN Pewny start. Czytam sam. Ja i świat zwierząt","049093",43,null,0]
[null,"PWN Akademia pomysłów. Jestem za rozmową. Komiks społeczny z ćwiczeniami 2","049017",69,null,0]
[null,"PWN Akademia pomysłów. Rozwój emocjonalno-społeczny. Ja i moje ciało. Część 2","049002",48,null,0]
[null,"Pewny start. Dzisiaj w szkole. Czytanki. Poznajemy Olę i Adama","085781",43,null,0]
[null,"PWN Pewny start. Mój dobry rok. Plansze demonstracyjne. Poznaję świat","049409",200,null,0]
[null,"PWN Pewny start. O dojrzewaniu.  Dziewczęta Zestaw","049497",265,null,{"$f":"E212*D212","v":0}]

{"sheet":"Krok 3","index":2,"n_rows":206,"n_cols":8,"rows_kept":206,"cut":false,"hidden":false,"merged":[[8,0,8,7],[10,5,12,5],[10,4,12,4],[10,0,12,0],[28,0,28,5],[13,0,14,0],[13,4,14,4],[15,0,16,0],[15,4,16,4],[10,7,12,7],[17,0,18,0],[205,3,205,4],[205,5,205,7],[13,5,14,5],[15,5,16,5],[13,7,14,7],[15,7,16,7],[17,4,18,4],[17,5,18,5],[17,7,18,7]]}
[]
[null,"Oferta Dotacja Celowa SPE …………………….."]
[]
["Imię i nazwisko",{"$f":"'Krok 1'!E4","v":0}]
["Adres szkoły",{"$f":"'Krok 1'!E6","v":0}]
["Dane kontaktowe",{"$f":"'Krok 1'!E8","v":0}]
["Dodatkowe informacje/notatki",{"$f":"'Krok 1'!E10","v":0}]
[]
["PAKIETY"]
["Pakiet","Tytuł","KH","Cena  pojedynczego egz.","Cena w pakiecie","Ilość egz.",null,"Wartość"]
["Zestaw 28","PEWNY START. NOWE CZTERY PORY ROKU Karty pracy. Jesień","085932",42.46,152.46,{"$f":"'Krok 2'!F7","v":0},{"$f":"F11","v":0},{"$f":"F11*E11","v":0}]
[null,"PEWNY START. NOWE CZTERY PORY ROKU Karty pracy. Wiosna, lato","085934",55,null,null,{"$f":"F11","v":0}]
[null,"PEWNY START. NOWE CZTERY PORY ROKU Karty pracy. Zima","085933",55,null,null,{"$f":"F11","v":0}]
["Zestaw 29","Pewny start. A. Zestaw. Karty pracy. Jesień, zima, Wiosna, lato","086567",75.459999999999994,152.46,{"$f":"'Krok 2'!F11","v":0},{"$f":"F14","v":0},{"$f":"E14*F14","v":0}]
[null,"Pewny start. A. Zestaw. Karty pracy. Czytanie, pisanie, Plastyka, grafomotoryka","086564",77,null,null,{"$f":"F14","v":0}]
["Zestaw 30","PEWNY START. B Zestaw Karty pracy. Czytanie, pisanie. Plastyka, grafomotoryka","086624",75.459999999999994,152.46,{"$f":"'Krok 2'!F14","v":0},{"$f":"F16","v":0},{"$f":"E16*F16","v":0}]
[null,"PEWNY START. B Zestaw Zestaw. Karty pracy. Jesień, zima, Wiosna, lato","086627",77,null,null,{"$f":"F16","v":0}]
["Zestaw 31","Pewny start. C Pakiet ćwiczeniowy Czytanie, pisanie. Matematyka","086684",75.459999999999994,152.46,{"$f":"'Krok 2'!F17","v":0},{"$f":"F18","v":0},{"$f":"E18*F18","v":0}]
[null,"Pewny start. C Pakiet ćwiczeniowy Jesień, zima, wiosna, lato","086687",77,null,null,{"$f":"F18","v":0}]
["Zestaw 32","Pewny start D  Zestaw. Karty pracy. Jesień, zima, Wiosna, lato","086586",76.239999999999995,76.239999999999995,{"$f":"'Krok 2'!F21","v":0},{"$f":"F20","v":0},{"$f":"E20*F20","v":0}]
["Zestaw 33","PEWNY START. E Zestaw. Karty pracy. Jesień, zima, Wiosna, lato","086647",76.239999999999995,76.239999999999995,{"$f":"'Krok 2'!F23","v":0},{"$f":"F21","v":0},{"$f":"E21*F21","v":0}]
["Zestaw 34","Pewny start G Zestaw. Karty pracy. Jesień, zima, Wiosna, lato","086609",76.239999999999995,76.239999999999995,{"$f":"'Krok 2'!F25","v":0},0,0]
["Zestaw 35","PEWNY START. H Zestaw. Karty pracy. Jesień, zima, Wiosna, lato","086669",76.239999999999995,76.239999999999995,{"$f":"'Krok 2'!F27","v":0},0,0]
["Zestaw 36","Pewny start. Poziom F. Pakiet ćwiczeniowy. Zestaw karty pracy: jesień, zima, wiosna, lato.","086707",76.239999999999995,76.239999999999995,{"$f":"'Krok 2'!F29","v":0},{"$f":"F24","v":0},0]
["Zestaw 37","Pewny start. C Pakiet edukacyjny zestaw moja książka. Codziennik. Funkcjonowanie,komunikacja,kreatywność","086681",197,196.02,{"$f":"'Krok 2'!F32","v":0},{"$f":"F25","v":0},0]
["Zestaw 38","Pewny start. Poziom F. Pakiet edukacyjny. Zestaw moja książka, Codziennik. Funkcjonowanie 1-2, Komunikacja, Kreatywność","086701",495,471.24,{"$f":"'Krok 2'!F35","v":0},{"$f":"F26","v":0},0]
[]
[]
["PEŁNA LISTA PUBLIKACJI "]
["Rodzaj","Tytuł","KH","Cena  pojedynczego egz.","Ilość egz.","Wartość"]
["MATERIAŁY EDUKACYJNE",{"$f":"'Krok 2'!B40","v":"Pewny start. A Zestaw. Moja książka, Codziennik szkolny Funkcjonowanie, komunikacja, kreatywność"},"086561",197,{"$f":"'Krok 2'!E40","v":0},{"$f":"E31*D31","v":0}]
["MATERIAŁY EDUKACYJNE",{"$f":"'Krok 2'!B41","v":"Pewny start. A Moja książka"},"086562",110,{"$f":"'Krok 2'!E41","v":0},{"$f":"E32*D32","v":0}]
["MATERIAŁY EDUKACYJNE",{"$f":"'Krok 2'!B42","v":"Pewny start. A Codziennik szkolny Funkcjonowanie, komunikacja, kreatywność"},"086563",95,{"$f":"'Krok 2'!E42","v":0},0]
["MATERIAŁY ĆWICZENIOWE",{"$f":"'Krok 2'!B43","v":"Pewny start. A Zestaw. Karty pracy. Jesień, zima, Wiosna, lato"},"086567",77,{"$f":"'Krok 2'!E43","v":0},0]
["MATERIAŁY ĆWICZENIOWE",{"$f":"'Krok 2'!B44","v":"Pewny start. A Zestaw. Karty pracy. Czytanie, pisanie, Plastyka, grafomotoryka"},"086564",77,{"$f":"'Krok 2'!E44","v":0},0]
["MATERIAŁY ĆWICZENIOWE",{"$f":"'Krok 2'!B45","v":"Pewny start. A Karty pracy Jesień, zima"},"086568",44,{"$f":"'Krok 2'!E45","v":0},0]
["MATERIAŁY ĆWICZENIOWE",{"$f":"'Krok 2'!B46","v":"Pewny start. A Karty pracy Wiosna, lato"},"086569",44,{"$f":"'Krok 2'!E46","v":0},0]
["MATERIAŁY ĆWICZENIOWE",{"$f":"'Krok 2'!B47","v":"Pewny start. A Karty pracy Pisanie, czytanie"},"086565",44,{"$f":"'Krok 2'!E47","v":0},0]
["MATERIAŁY ĆWICZENIOWE",{"$f":"'Krok 2'!B48","v":"Pewny start. A Karty pracy Plastyka, grafomotoryka"},"086566",44,{"$f":"'Krok 2'!E48","v":0},0]
["MATERIAŁY EDUKACYJNE",{"$f":"'Krok 2'!B49","v":"Pewny start. B Zestaw Moja książka. Codziennik. Funkcjonowanie, komunikacja, kreatywność"},"086621",197,{"$f":"'Krok 2'!E49","v":0},0]
["MATERIAŁY EDUKACYJNE",{"$f":"'Krok 2'!B50","v":"Pewny start. B Moja książka"},"086622",110.00000000000001,{"$f":"'Krok 2'!E50","v":0},0]
["MATERIAŁY EDUKACYJNE",{"$f":"'Krok 2'!B51","v":"Pewny start. B Codziennik szkolny. Funkcjonowanie, komunikacja, kreatywność"},"086623",95,{"$f":"'Krok 2'!E51","v":0},0]
["MATERIAŁY ĆWICZENIOWE",{"$f":"'Krok 2'!B52","v":"Pewny start. B Zestaw Karty pracy. Czytanie, pisanie. Plastyka, grafomotoryka"},"086624",77,{"$f":"'Krok 2'!E52","v":0},0]
["MATERIAŁY ĆWICZENIOWE",{"$f":"'Krok 2'!B53","v":"Pewny start. B Zestaw Zestaw. Karty pracy. Jesień, zima, Wiosna, lato"},"086627",77,{"$f":"'Krok 2'!E53","v":0},0]
["MATERIAŁY ĆWICZENIOWE",{"$f":"'Krok 2'!B54","v":"Pewny start. B Karty pracy Jesień, zima"},"086628",44,{"$f":"'Krok 2'!E54","v":0},0]
["MATERIAŁY ĆWICZENIOWE",{"$f":"'Krok 2'!B55","v":"Pewny start. B Karty pracy  Wiosna, lato"},"086629",44,{"$f":"'Krok 2'!E55","v":0},0]
["MATERIAŁY ĆWICZENIOWE",{"$f":"'Krok 2'!B56","v":"Pewny start. B Karty pracy Pisanie, czytanie"},"086625",44,{"$f":"'Krok 2'!E56","v":0},0]
["MATERIAŁY ĆWICZENIOWE",{"$f":"'Krok 2'!B57","v":"Pewny start. B Karty pracy Plastyka, grafomotoryka"},"086626",44,{"$f":"'Krok 2'!E57","v":0},0]
["MATERIAŁY EDUKACYJNE",{"$f":"'Krok 2'!B58","v":"Pewny start. C Pakiet edukacyjny zestaw moja książka. Codziennik. Funkcjonowanie,komunikacja,kreatywność"},"086681",197,{"$f":"'Krok 2'!E58","v":0},0]
["MATERIAŁY EDUKACYJNE",{"$f":"'Krok 2'!B59","v":"Pewny start. C Moja książka"},"086682",110,{"$f":"'Krok 2'!E59","v":0},0]
["MATERIAŁY EDUKACYJNE",{"$f":"'Krok 2'!B60","v":"Pewny start. C Codziennik fun/kom/kre"},"086683",95,{"$f":"'Krok 2'!E60","v":0},0]
["MATERIAŁY ĆWICZENIOWE",{"$f":"'Krok 2'!B61","v":"Pewny start. C Pakiet ćwiczeniowy 1 czytanie, pisanie, plastyka,grafomotoryka"},"086684",77,{"$f":"'Krok 2'!E61","v":0},0]
["MATERIAŁY ĆWICZENIOWE",{"$f":"'Krok 2'!B62","v":"Pewny start. C Pakiet ćwiczeniowy 2-Jesień, zima, wiosna, lato"},"086687",77,{"$f":"'Krok 2'!E62","v":0},0]
["MATERIAŁY ĆWICZENIOWE",{"$f":"'Krok 2'!B63","v":"Pewny start. C Karty pracy  jesień/zima"},"086688",44,{"$f":"'Krok 2'!E63","v":0},0]
["MATERIAŁY ĆWICZENIOWE",{"$f":"'Krok 2'!B64","v":"Pewny start. C Karty pracy 2 wiosna/lato"},"086689",44,{"$f":"'Krok 2'!E64","v":0},0]
["MATERIAŁY ĆWICZENIOWE",{"$f":"'Krok 2'!B65","v":"Pewny start. C Karty pracy pisanie/czytanie"},"086685",44,{"$f":"'Krok 2'!E65","v":0},0]
["MATERIAŁY ĆWICZENIOWE",{"$f":"'Krok 2'!B66","v":"Pewny start. C Karty pracy matematyka"},"086686",44,{"$f":"'Krok 2'!E66","v":0},0]
["MATERIAŁY EDUKACYJNE",{"$f":"'Krok 2'!B67","v":"Pewny start. D Zestaw Moja książka, Codziennik szkolny. Funkcjonowanie, Codziennik szkolny. Komunikacja, Codziennik szkolny. Kreatywność "},"086581",380,{"$f":"'Krok 2'!E67","v":0},0]
["MATERIAŁY EDUKACYJNE",{"$f":"'Krok 2'!B68","v":"Pewny start. D Moja książka"},"086582",112,{"$f":"'Krok 2'!E68","v":0},0]
["MATERIAŁY EDUKACYJNE",{"$f":"'Krok 2'!B69","v":"Pewny start. D Codziennik szkolny. Funkcjonowanie"},"086583",95,{"$f":"'Krok 2'!E69","v":0},0]
["MATERIAŁY ĆWICZENIOWE",{"$f":"'Krok 2'!B70","v":"Pewny start. D Codziennik szkolny. Komunikacja"},"086584",95,{"$f":"'Krok 2'!E70","v":0},0]
["MATERIAŁY ĆWICZENIOWE",{"$f":"'Krok 2'!B71","v":"Pewny start. D Codziennik szkolny. Kreatywność"},"086585",95,{"$f":"'Krok 2'!E71","v":0},0]
["MATERIAŁY ĆWICZENIOWE",{"$f":"'Krok 2'!B72","v":"Pewny start. D  Zestaw. Karty pracy. Jesień, zima, Wiosna, lato"},"086586",77,{"$f":"'Krok 2'!E72","v":0},0]
["MATERIAŁY ĆWICZENIOWE",{"$f":"'Krok 2'!B73","v":"Pewny start. D Karty pracy.  Jesień, zima"},"086587",44,{"$f":"'Krok 2'!E73","v":0},0]
["MATERIAŁY ĆWICZENIOWE",{"$f":"'Krok 2'!B74","v":"Pewny start. D Karty pracy.  Wiosna, lato"},"086588",44,{"$f":"'Krok 2'!E74","v":0},0]
["MATERIAŁY EDUKACYJNE",{"$f":"'Krok 2'!B75","v":"Pewny start. E Zestaw Moja książka, Codziennik. Funkcjonowanie 1-2, Komunikacja, Kreatywność"},"086641",495,{"$f":"'Krok 2'!E75","v":0},0]
["MATERIAŁY EDUKACYJNE",{"$f":"'Krok 2'!B76","v":"Pewny start. E Moja książka"},"086642",130,{"$f":"'Krok 2'!E76","v":0},0]
["MATERIAŁY EDUKACYJNE",{"$f":"'Krok 2'!B77","v":"Pewny start. E Cdziennik. Funkcjonowanie 1"},"086643",95,{"$f":"'Krok 2'!E77","v":0},0]
["MATERIAŁY EDUKACYJNE",{"$f":"'Krok 2'!B78","v":"Pewny start. E Codziennik. Funkcjonowanie 2"},"086644",95,{"$f":"'Krok 2'!E78","v":0},0]
["MATERIAŁY EDUKACYJNE",{"$f":"'Krok 2'!B79","v":"Pewny start. E Codziennik. Komunikacja"},"086645",95,{"$f":"'Krok 2'!E79","v":0},0]
["MATERIAŁY EDUKACYJNE",{"$f":"'Krok 2'!B80","v":"Pewny start. E Codziennik. Kreatywność"},"086646",95,{"$f":"'Krok 2'!E80","v":0},0]
["MATERIAŁY ĆWICZENIOWE",{"$f":"'Krok 2'!B81","v":"Pewny start. E Zestaw. Karty pracy. Jesień, zima, Wiosna, lato"},"086647",77,{"$f":"'Krok 2'!E81","v":0},0]
["MATERIAŁY ĆWICZENIOWE",{"$f":"'Krok 2'!B82","v":"Pewny start. E Karty pracy. Jesień, zima"},"086648",40,{"$f":"'Krok 2'!E82","v":0},0]
["MATERIAŁY ĆWICZENIOWE",{"$f":"'Krok 2'!B83","v":"Pewny start. E Karty pracy. Wiosna, lato"},"086649",40,{"$f":"'Krok 2'!E83","v":0},0]
["MATERIAŁY EDUKACYJNE",{"$f":"'Krok 2'!B84","v":"Pewny start. F Pakiet edukacyjny. Zestaw moja książka, Codziennik. Funkcjonowanie 1-2, Komunikacja, Kreatywność"},"086701",495,{"$f":"'Krok 2'!E84","v":0},0]
["MATERIAŁY EDUKACYJNE",{"$f":"'Krok 2'!B85","v":"Pewny start. F Moja książka"},"086702",130,{"$f":"'Krok 2'!E85","v":0},0]
["MATERIAŁY EDUKACYJNE",{"$f":"'Krok 2'!B86","v":"Pewny start. F Cdziennik. Funkcjonowanie 1"},"086703",95,{"$f":"'Krok 2'!E86","v":0},0]
["MATERIAŁY EDUKACYJNE",{"$f":"'Krok 2'!B87","v":"Pewny start. F Codziennik. Funkcjonowanie 2"},"086704",95,{"$f":"'Krok 2'!E87","v":0},0]
["MATERIAŁY EDUKACYJNE",{"$f":"'Krok 2'!B88","v":"Pewny start. F Codziennik. Komunikacja"},"086705",95,{"$f":"'Krok 2'!E88","v":0},0]
["MATERIAŁY EDUKACYJNE",{"$f":"'Krok 2'!B89","v":"Pewny start. F Codziennik. Kreatywność"},"086706",95,{"$f":"'Krok 2'!E89","v":0},0]
["MATERIAŁY ĆWICZENIOWE",{"$f":"'Krok 2'!B90","v":"Pewny start. F Pakiet ćwiczeniowy. Zestaw karty pracy: jesień, zima, wiosna, lato"},"086707",77,{"$f":"'Krok 2'!E90","v":0},0]
["MATERIAŁY ĆWICZENIOWE",{"$f":"'Krok 2'!B91","v":"Pewny start. F Karty pracy. Jesień/zima"},"086708",40,{"$f":"'Krok 2'!E91","v":0},0]
["MATERIAŁY ĆWICZENIOWE",{"$f":"'Krok 2'!B92","v":"Pewny start. F Karty pracy. Wiosna/lato"},"086709",40,{"$f":"'Krok 2'!E92","v":0},0]
["MATERIAŁY EDUKACYJNE",{"$f":"'Krok 2'!B93","v":"Pewny start. G Zestaw Moja książka. Codziennik szkolny. Funkcjonowanie 1-3, Komunikacja 1-2, Kreatywność "},"086601",650,{"$f":"'Krok 2'!E93","v":0},0]
["MATERIAŁY EDUKACYJNE",{"$f":"'Krok 2'!B94","v":"Pewny start. G Moja książka"},"086602",112,{"$f":"'Krok 2'!E94","v":0},0]
["MATERIAŁY EDUKACYJNE",{"$f":"'Krok 2'!B95","v":"Pewny start. G Codziennik szkolny. Funkcjonowanie 1"},"086603",95,{"$f":"'Krok 2'!E95","v":0},0]
["MATERIAŁY EDUKACYJNE",{"$f":"'Krok 2'!B96","v":"Pewny start. G Codziennik szkolny. Funkcjonowanie 2"},"086604",95,{"$f":"'Krok 2'!E96","v":0},0]
["MATERIAŁY EDUKACYJNE",{"$f":"'Krok 2'!B97","v":"Pewny start. G Codziennik szkolny. Funkcjonowanie 3"},"086605",95,{"$f":"'Krok 2'!E97","v":0},0]
["MATERIAŁY EDUKACYJNE",{"$f":"'Krok 2'!B98","v":"Pewny start. G Codziennik szkolny. Komunikacja 1"},"086606",95,{"$f":"'Krok 2'!E98","v":0},0]
["MATERIAŁY EDUKACYJNE",{"$f":"'Krok 2'!B99","v":"Pewny start. G Codziennik szkolny. Komunikacja 2"},"086607",95,{"$f":"'Krok 2'!E99","v":0},0]
["MATERIAŁY EDUKACYJNE",{"$f":"'Krok 2'!B100","v":"Pewny start. G Codziennik szkolny. Kreatywność"},"086608",95,{"$f":"'Krok 2'!E100","v":0},0]
["MATERIAŁY ĆWICZENIOWE",{"$f":"'Krok 2'!B101","v":"Pewny start. G Zestaw. Karty pracy. Jesień, zima, Wiosna, lato"},"086609",77,{"$f":"'Krok 2'!E101","v":0},0]
["MATERIAŁY ĆWICZENIOWE",{"$f":"'Krok 2'!B102","v":"Pewny start. G Karty pracy  Jesień, zima"},"086610",39,{"$f":"'Krok 2'!E102","v":0},0]
["MATERIAŁY ĆWICZENIOWE",{"$f":"'Krok 2'!B103","v":"Pewny start. G Karty pracy  Wiosna, lato"},"086611",39,{"$f":"'Krok 2'!E103","v":0},0]
["MATERIAŁY EDUKACYJNE",{"$f":"'Krok 2'!B104","v":"Pewny start. H Zestaw Moja książka, Codziennik. Funkcjonowanie 1-3, Komunikacja1-2, Kreatywność"},"086661",690,{"$f":"'Krok 2'!E104","v":0},0]
["MATERIAŁY EDUKACYJNE",{"$f":"'Krok 2'!B105","v":"Pewny start. H Moja książka"},"086662",130,{"$f":"'Krok 2'!E105","v":0},{"$f":"E96*D96","v":0}]
["MATERIAŁY EDUKACYJNE",{"$f":"'Krok 2'!B106","v":"Pewny start. H Codziennik funkcjonowanie 1"},"086663",95,{"$f":"'Krok 2'!E106","v":0},0]
["MATERIAŁY EDUKACYJNE",{"$f":"'Krok 2'!B107","v":"Pewny start. H Codziennik funkcjonowanie 2"},"086664",95,{"$f":"'Krok 2'!E107","v":0},0]
["MATERIAŁY EDUKACYJNE",{"$f":"'Krok 2'!B108","v":"Pewny start. H Codziennik funkcjonowanie 3"},"086665",95,{"$f":"'Krok 2'!E108","v":0},0]
["MATERIAŁY EDUKACYJNE",{"$f":"'Krok 2'!B109","v":"Pewny start. H Codziennik komunikacja 1"},"086666",95,{"$f":"'Krok 2'!E109","v":0},0]
["MATERIAŁY EDUKACYJNE",{"$f":"'Krok 2'!B110","v":"Pewny start. H Codziennik komunikacja 2"},"086667",95,{"$f":"'Krok 2'!E110","v":0},0]
["MATERIAŁY EDUKACYJNE",{"$f":"'Krok 2'!B111","v":"Pewny start. H Codziennik kreatywność"},"086668",95,{"$f":"'Krok 2'!E111","v":0},0]
["MATERIAŁY ĆWICZENIOWE",{"$f":"'Krok 2'!B112","v":"Pewny start. H Zestaw. Karty pracy. Jesień, zima, Wiosna, lato"},"086669",77,{"$f":"'Krok 2'!E112","v":0},0]
["MATERIAŁY ĆWICZENIOWE",{"$f":"'Krok 2'!B113","v":"Pewny start. H Karty pracy  jesień/zima"},"086670",40,{"$f":"'Krok 2'!E113","v":0},0]
["MATERIAŁY ĆWICZENIOWE",{"$f":"'Krok 2'!B114","v":"Pewny start. H Karty pracy  wiosna/lato"},"086671",40,{"$f":"'Krok 2'!E114","v":0},0]
["MATERIAŁY EDUKACYJNE / MATERIAŁY ĆWICZENIOWE",{"$f":"'Krok 2'!B115","v":"Akademia pomysłów. Zajęcia wyrównawcze Zestaw"},"085611",499,{"$f":"'Krok 2'!E115","v":0},0]
["MATERIAŁY EDUKACYJNE / MATERIAŁY ĆWICZENIOWE",{"$f":"'Krok 2'!B116","v":"Akademia pomysłów. Uczeń z  niepełnosprawnością intelektualną w stopniu lekkim Zestaw"},"085591",499,{"$f":"'Krok 2'!E116","v":0},0]
["MATERIAŁY EDUKACYJNE / MATERIAŁY ĆWICZENIOWE",{"$f":"'Krok 2'!B117","v":"Akademia pomysłów. Uczeń ze spektrum autyzmu 1-3 Zestaw"},"085551",499,{"$f":"'Krok 2'!E117","v":0},0]
["MATERIAŁY EDUKACYJNE",{"$f":"'Krok 2'!B118","v":"Pewny start. Nowe cztery pory roku Karty matematyczne. Liczby"},"085938",47,{"$f":"'Krok 2'!E118","v":0},0]
["MATERIAŁY EDUKACYJNE",{"$f":"'Krok 2'!B119","v":"Pewny start. Nowe cztery pory roku Karty do nauki czytania i pisania. Litery i wyrazy"},"085937",60,{"$f":"'Krok 2'!E119","v":0},0]
["MATERIAŁY ĆWICZENIOWE",{"$f":"'Krok 2'!B120","v":"Pewny start. Nowe cztery pory roku Karty zadaniowe. Umiem to zrobić"},"085936",43,{"$f":"'Krok 2'!E120","v":0},0]
["MATERIAŁY ĆWICZENIOWE",{"$f":"'Krok 2'!B121","v":"Pewny start. Nowe cztery pory roku Karty pracy. Jesień"},"085932",55,{"$f":"'Krok 2'!E121","v":0},0]
["MATERIAŁY ĆWICZENIOWE",{"$f":"'Krok 2'!B122","v":"Pewny start. Nowe cztery pory roku Karty pracy. Wiosna, lato"},"085934",55,{"$f":"'Krok 2'!E122","v":0},0]
["MATERIAŁY ĆWICZENIOWE",{"$f":"'Krok 2'!B123","v":"Pewny start. Nowe cztery pory roku Karty pracy. Zima"},"085933",55,{"$f":"'Krok 2'!E123","v":0},0]
["MATERIAŁY ĆWICZENIOWE",{"$f":"'Krok 2'!B124","v":"Funkcje psychofizyczne. Karty pracy. Grafomotoryka. Poziom 1"},"086531",60,{"$f":"'Krok 2'!E124","v":0},0]
["MATERIAŁY ĆWICZENIOWE",{"$f":"'Krok 2'!B125","v":"Funkcje psychofizyczne. Karty pracy. Koncentracja uwagi. Poziom 1"},"086532",60,{"$f":"'Krok 2'!E125","v":0},0]
["MATERIAŁY ĆWICZENIOWE",{"$f":"'Krok 2'!B126","v":"Funkcje psychofizyczne. Karty pracy. Percepcja wzrokowa. Poziom 1"},"086533",60,{"$f":"'Krok 2'!E126","v":0},0]
["MATERIAŁY ĆWICZENIOWE",{"$f":"'Krok 2'!B127","v":"Funkcje psychofizyczne. Karty pracy. Percepcja słuchowa. Poziom 1"},"086534",60,{"$f":"'Krok 2'!E127","v":0},0]
["MATERIAŁY ĆWICZENIOWE",{"$f":"'Krok 2'!B128","v":"Funkcje psychofizyczne.Karty pracy. Orientacja przestrzenna. Poziom 1"},"086535",60,{"$f":"'Krok 2'!E128","v":0},0]
["MATERIAŁY ĆWICZENIOWE",{"$f":"'Krok 2'!B129","v":"Funkcje psychofizyczne. Karty pracy. Funkcjonowanie społeczne. Poziom 1"},"086536",60,{"$f":"'Krok 2'!E129","v":0},0]
["MATERIAŁY ĆWICZENIOWE",{"$f":"'Krok 2'!B130","v":"Funkcje psychofizyczne. Karty pracy. Wypowiedzi ustne i pisemne. Poziom1"},"086537",60,{"$f":"'Krok 2'!E130","v":0},0]
["MATERIAŁY EDUKACYJNE",{"$f":"'Krok 2'!B131","v":"PWN Akademia pisania. Układanki obrazkowo-wyrazowe. Poznaję i utrwalam poprawną wpisownię wyrazów ó/u"},"049141",44,{"$f":"'Krok 2'!E131","v":0},0]
["MATERIAŁY EDUKACYJNE",{"$f":"'Krok 2'!B132","v":"PWN Akademia pisania. Układanki obrazkowo-wyrazowe. Poznaję i utrwalam poprawną wpisownię wyrazów rz/ż"},"049142",44,{"$f":"'Krok 2'!E132","v":0},0]
["MATERIAŁY EDUKACYJNE",{"$f":"'Krok 2'!B133","v":"Pewny start. Zaśpiewajmy razem. Śpiewnik z symbolami PCS"},"049741",90,{"$f":"'Krok 2'!E133","v":0},0]
["MATERIAŁY ĆWICZENIOWE",{"$f":"'Krok 2'!B134","v":"PWN Pewny start. Zaśpiewajmy razem. Zeszyt ćwiczeń Zeszyt plastyczno- grafomotoryczny do śpiewnika z symbolami PCS"},"049742",30,{"$f":"'Krok 2'!E134","v":0},0]
["MATERIAŁY ĆWICZENIOWE",{"$f":"'Krok 2'!B135","v":"Funkcje psychofizyczne. Funkcjonowanie społeczne 2"},"086542",60,{"$f":"'Krok 2'!E135","v":0},0]
["MATERIAŁY ĆWICZENIOWE",{"$f":"'Krok 2'!B136","v":"Funkcje psychofizyczne. Koncentracja uwagi 2"},"086538",60,{"$f":"'Krok 2'!E136","v":0},0]
["MATERIAŁY ĆWICZENIOWE",{"$f":"'Krok 2'!B137","v":"Funkcje psychofizyczne.Orientacja przestrzenna 2"},"086541",60,{"$f":"'Krok 2'!E137","v":0},0]
["MATERIAŁY ĆWICZENIOWE",{"$f":"'Krok 2'!B138","v":"Funkcje psychofizyczne. Percepcja słuchowa 2"},"086540",60,{"$f":"'Krok 2'!E138","v":0},0]
["MATERIAŁY ĆWICZENIOWE",{"$f":"'Krok 2'!B139","v":"Funkcje psychofizyczne.Percepcja wzrokowa 2"},"086539",60,{"$f":"'Krok 2'!E139","v":0},0]
["MATERIAŁY ĆWICZENIOWE",{"$f":"'Krok 2'!B140","v":"Funkcje psychofizyczne.Wypowiedzi ustne i pisemne 2"},"086543",60,{"$f":"'Krok 2'!E140","v":0},0]
["MATERIAŁY EDUKACYJNE",{"$f":"'Krok 2'!B141","v":"Pewny start. Mój dobry rok. Materiał edukacyjny. Lubię jesień, Lubię zimę, Lubię wiosnę, lubię lato"},"085831",83,{"$f":"'Krok 2'!E141","v":0},0]
["MATERIAŁY ĆWICZENIOWE",{"$f":"'Krok 2'!B142","v":"Pewny start. Mój dobry rok. Karty pracy. Czytanie i pisanie"},"085832",52,{"$f":"'Krok 2'!E142","v":0},0]
["MATERIAŁY ĆWICZENIOWE",{"$f":"'Krok 2'!B143","v":"PWN Pewny start. Mój dobry rok. Plansze konturowe"},"049281",63,{"$f":"'Krok 2'!E143","v":0},0]
["MATERIAŁY EDUKACYJNE",{"$f":"'Krok 2'!B144","v":"Pewny start. Świat wokół mnie. Wycinanki. Emocje"},"086193",43,{"$f":"'Krok 2'!E144","v":0},0]
["MATERIAŁY EDUKACYJNE",{"$f":"'Krok 2'!B145","v":"Pewny start. Świat wokół mnie. Historyjki obrazkowe. Układam, opowiadam"},"086192",56,{"$f":"'Krok 2'!E145","v":0},0]
["MATERIAŁY EDUKACYJNE",{"$f":"'Krok 2'!B146","v":"Pewny start. Świat wokół mnie. Czytanki. Ola, Adam i ich świat"},"086195",43,{"$f":"'Krok 2'!E146","v":0},0]
["MATERIAŁY EDUKACYJNE",{"$f":"'Krok 2'!B147","v":"Pewny start. Wokół pór roku. Czytanki. Rozmowy Oli i Adama"},"086265",43,{"$f":"'Krok 2'!E147","v":0},0]
["MATERIAŁY ĆWICZENIOWE",{"$f":"'Krok 2'!B148","v":"Pewny start. Wokół pór roku. Karty pracy. Wokół jesieni"},"086262",39,{"$f":"'Krok 2'!E148","v":0},0]
["MATERIAŁY ĆWICZENIOWE",{"$f":"'Krok 2'!B149","v":"Pewny start. Wokół pór roku. Karty pracy. Wokół wiosny, wokół lata"},"086264",39,{"$f":"'Krok 2'!E149","v":0},0]
["MATERIAŁY ĆWICZENIOWE",{"$f":"'Krok 2'!B150","v":"Pewny start. Wokół pór roku. Karty pracy. Wokół zimy"},"086263",39,{"$f":"'Krok 2'!E150","v":0},0]
["MATERIAŁY ĆWICZENIOWE",{"$f":"'Krok 2'!B151","v":"Pewny start. Moja matematyka. Zestaw Kart pracy Jesień, Zima, Wiosna,lato. Poziom A"},"086481",154,{"$f":"'Krok 2'!E151","v":0},0]
["MATERIAŁY ĆWICZENIOWE",{"$f":"'Krok 2'!B152","v":"Pewny start. Moja matematyka. Karty pracy. Jesień. Poziom A"},"086482",55,{"$f":"'Krok 2'!E152","v":0},0]
["MATERIAŁY ĆWICZENIOWE",{"$f":"'Krok 2'!B153","v":"Pewny start. Moja matematyka. Karty pracy. Zima. Poziom A"},"086483",55,{"$f":"'Krok 2'!E153","v":0},0]
["MATERIAŁY ĆWICZENIOWE",{"$f":"'Krok 2'!B154","v":"Pewny start. Moja matematyka. Karty pracy. Wiosna, lato. Poziom A"},"086484",55,{"$f":"'Krok 2'!E154","v":0},0]
["MATERIAŁY ĆWICZENIOWE",{"$f":"'Krok 2'!B155","v":"Pewny start. Moja matematyka. Zestaw Kart pracy. Jesień, Zima, Wiosna,lato. Poziom B"},"086485",154,{"$f":"'Krok 2'!E155","v":0},0]
["MATERIAŁY ĆWICZENIOWE",{"$f":"'Krok 2'!B156","v":"Pewny start. Moja matematyka. Karty pracy. Jesień. Poziom B"},"086486",55,{"$f":"'Krok 2'!E156","v":0},0]
["MATERIAŁY ĆWICZENIOWE",{"$f":"'Krok 2'!B157","v":"Pewny start. Moja matematyka. Karty pracy. Zima. Poziom B"},"086487",55,{"$f":"'Krok 2'!E157","v":0},0]
["MATERIAŁY ĆWICZENIOWE",{"$f":"'Krok 2'!B158","v":"Pewny start. Moja matematyka. Karty pracy. Wiosna, lato. Poziom B"},"086488",55,{"$f":"'Krok 2'!E158","v":0},0]
["MATERIAŁY ĆWICZENIOWE",{"$f":"'Krok 2'!B159","v":"Pewny start. Moja codzienność. Karty pracy. Jesień"},"085811",42,{"$f":"'Krok 2'!E159","v":0},0]
["MATERIAŁY ĆWICZENIOWE",{"$f":"'Krok 2'!B160","v":"Pewny start. Moja codzienność. Karty pracy. Wiosna, lato"},"085813",42,{"$f":"'Krok 2'!E160","v":0},0]
["MATERIAŁY ĆWICZENIOWE",{"$f":"'Krok 2'!B161","v":"Pewny start. Moja codzienność. Karty pracy. Zima"},"085812",42,{"$f":"'Krok 2'!E161","v":0},0]
["MATERIAŁY EDUKACYJNE / MATERIAŁY ĆWICZENIOWE",{"$f":"'Krok 2'!B162","v":"Akademia pomysłów. Uczeń ze spektrum autyzmu 4-8 Zestaw"},"085571",499,{"$f":"'Krok 2'!E162","v":0},0]
["MATERIAŁY EDUKACYJNE",{"$f":"'Krok 2'!B163","v":"Pewny start. Odkrywam świat. Materiał edukacyjny. Moja książka. PoziomA"},"086112",96,{"$f":"'Krok 2'!E163","v":0},0]
["MATERIAŁY ĆWICZENIOWE",{"$f":"'Krok 2'!B164","v":"Pewny start. Odkrywam świat. Moje ćwiczenia. Poziom A"},"086111",52,{"$f":"'Krok 2'!E164","v":0},0]
["MATERIAŁY ĆWICZENIOWE",{"$f":"'Krok 2'!B165","v":"Pewny start. Odkrywam świat. Moje ćwiczenia. Poziom B"},"086113",52,{"$f":"'Krok 2'!E165","v":0},0]
["MATERIAŁY ĆWICZENIOWE",{"$f":"'Krok 2'!B166","v":"Pewny start. Poznać i zrozumieć uczucia. Karty pracy. Nasz wewnętrzny świat"},"086142",39,{"$f":"'Krok 2'!E166","v":0},0]
["MATERIAŁY EDUKACYJNE",{"$f":"'Krok 2'!B167","v":"Pewny start. Poznać i zrozumieć uczucia. Poradnik pozytywny. Jak sobie radzić z uczuciami"},"086147",62,{"$f":"'Krok 2'!E167","v":0},0]
["MATERIAŁY EDUKACYJNE",{"$f":"'Krok 2'!B168","v":"Pewny start. Poznać i zrozumieć uczucia. Historyjki społeczne. Uczucia w nas i w relacjach ze światem"},"086146",56,{"$f":"'Krok 2'!E168","v":0},0]
["MATERIAŁY EDUKACYJNE",{"$f":"'Krok 2'!B169","v":"Pewny start. Poznać i zrozumieć uczucia. Historyjki obrazkowe. Co by było, gdyby"},"086148",83,{"$f":"'Krok 2'!E169","v":0},{"$f":"E160*D160","v":0}]
["MATERIAŁY EDUKACYJNE",{"$f":"'Krok 2'!B170","v":"PWN Pewny start. Aktywni zawodowo. Materiał edukacyjny. ABC rękodzieła"},"049157",75,{"$f":"'Krok 2'!E170","v":0},0]
["MATERIAŁY EDUKACYJNE",{"$f":"'Krok 2'!B171","v":"PWN Pewny start. Aktywni zawodowo. Materiał edukacyjny. Pracuję w biurze"},"049164",75,{"$f":"'Krok 2'!E171","v":0},0]
["MATERIAŁY EDUKACYJNE",{"$f":"'Krok 2'!B172","v":"PWN Pewny start. Aktywni zawodowo. Materiał edukacyjny. Podaję do stołu"},"049169",75,{"$f":"'Krok 2'!E172","v":0},0]
["MATERIAŁY EDUKACYJNE",{"$f":"'Krok 2'!B173","v":"PWN Pewny start. Aktywni zawodowo. Materiał edukacyjny. ABC pracy w kuchni"},"049167",75,{"$f":"'Krok 2'!E173","v":0},0]
["MATERIAŁY EDUKACYJNE",{"$f":"'Krok 2'!B174","v":"PWN Pewny start. Aktywni zawodowo. Materiał edukacyjny. Obsługa AGD  w kuchni"},"049168",75,{"$f":"'Krok 2'!E174","v":0},0]
["MATERIAŁY EDUKACYJNE",{"$f":"'Krok 2'!B175","v":"PWN Pewny start. Aktywni zawodowo. Plansze magnetyczne. Kalendarz ogrodnika"},"049177",200,{"$f":"'Krok 2'!E175","v":0},0]
["MATERIAŁY EDUKACYJNE",{"$f":"'Krok 2'!B176","v":"Pewny start. Aktywni zawodowo. Prace porządkowe. Czynności porządkowe. Materiał edukacyjny"},"085713",75,{"$f":"'Krok 2'!E176","v":0},0]
["MATERIAŁY ĆWICZENIOWE",{"$f":"'Krok 2'!B177","v":"Pewny start. Aktywni zawodowo. Karty pracy 1. Rękodzieło"},"085705",50,{"$f":"'Krok 2'!E177","v":0},0]
["MATERIAŁY ĆWICZENIOWE",{"$f":"'Krok 2'!B178","v":"Pewny start. Aktywni zawodowo. Karty pracy 2. Rękodzieło"},"085706",50,{"$f":"'Krok 2'!E178","v":0},0]
["MATERIAŁY ĆWICZENIOWE",{"$f":"'Krok 2'!B179","v":"Pewny start. Aktywni zawodowo. Karty pracy 1. Prace biurowe"},"085703",50,{"$f":"'Krok 2'!E179","v":0},0]
["MATERIAŁY ĆWICZENIOWE",{"$f":"'Krok 2'!B180","v":"Pewny start. Aktywni zawodowo. Karty pracy 2. Prace biurowe"},"085704",50,{"$f":"'Krok 2'!E180","v":0},0]
["MATERIAŁY ĆWICZENIOWE",{"$f":"'Krok 2'!B181","v":"Pewny start. Aktywni zawodowo. Karty pracy 1. Zajęcia kulinarne"},"085707",50,{"$f":"'Krok 2'!E181","v":0},0]
["MATERIAŁY ĆWICZENIOWE",{"$f":"'Krok 2'!B182","v":"Pewny start. Aktywni zawodowo. Karty pracy 2. Zajęcia kulinarne"},"085708",50,{"$f":"'Krok 2'!E182","v":0},0]
["MATERIAŁY ĆWICZENIOWE",{"$f":"'Krok 2'!B183","v":"Pewny start. Aktywni zawodowo. Karty pracy 3. Zajęcia kulinarne"},"049172",50,{"$f":"'Krok 2'!E183","v":0},0]
["MATERIAŁY ĆWICZENIOWE",{"$f":"'Krok 2'!B184","v":"Pewny start. Aktywni zawodowo. Karty pracy 1. Ogrodnictwo"},"085701",50,{"$f":"'Krok 2'!E184","v":0},0]
["MATERIAŁY ĆWICZENIOWE",{"$f":"'Krok 2'!B185","v":"Pewny start. Aktywni zawodowo. Karty pracy 2. Ogrodnictwo"},"085702",50,{"$f":"'Krok 2'!E185","v":0},0]
["MATERIAŁY ĆWICZENIOWE",{"$f":"'Krok 2'!B186","v":"Pewny start. Aktywni zawodowo. Prace porządkowe. Karty pracy 1"},"085710",50,{"$f":"'Krok 2'!E186","v":0},0]
["MATERIAŁY ĆWICZENIOWE",{"$f":"'Krok 2'!B187","v":"Pewny start. Aktywni zawodowo. Prace porządkowe. Karty pracy 2"},"085711",50,{"$f":"'Krok 2'!E187","v":0},0]
["MATERIAŁY ĆWICZENIOWE",{"$f":"'Krok 2'!B188","v":"Pewny start. Aktywni zawodowo. Prace porządkowe. Karty pracy 3"},"085712",50,{"$f":"'Krok 2'!E188","v":0},0]
["MATERIAŁY ĆWICZENIOWE",{"$f":"'Krok 2'!B189","v":"Funkcje psychofizyczne. Karty pracy. Koncentracja uwagi. Poziom 3"},"086544",60,{"$f":"'Krok 2'!E189","v":0},0]
["MATERIAŁY ĆWICZENIOWE",{"$f":"'Krok 2'!B190","v":"Funkcje psychofizyczne. Karty pracy. Percepcja wzrokowa. Poziom 3"},"086545",60,{"$f":"'Krok 2'!E190","v":0},0]
["MATERIAŁY ĆWICZENIOWE",{"$f":"'Krok 2'!B191","v":"Funkcje psychofizyczne. Karty pracy. Percepcja słuchowa. Poziom 3"},"086546",60,{"$f":"'Krok 2'!E191","v":0},0]
["MATERIAŁY ĆWICZENIOWE",{"$f":"'Krok 2'!B192","v":"Funkcje psychofizyczne. Karty pracy. Orientacja przestrzenna. Poziom 3"},"086547",60,{"$f":"'Krok 2'!E192","v":0},0]
["MATERIAŁY ĆWICZENIOWE",{"$f":"'Krok 2'!B193","v":"Funkcje psychofizyczne. Karty pracy. Funkcjonowanie społeczne. Poziom 3"},"086548",60,{"$f":"'Krok 2'!E193","v":0},0]
["MATERIAŁY ĆWICZENIOWE",{"$f":"'Krok 2'!B194","v":"Funkcje psychofizyczne. Karty pracy. Wypowiedzi ustne i pisemne. Poziom 3"},"086549",60,{"$f":"'Krok 2'!E194","v":0},0]
["MATERIAŁY EDUKACYJNE",{"$f":"'Krok 2'!B195","v":"PWN Pewny start. Instrukcje zachowań. Asertywność"},"049283",43,{"$f":"'Krok 2'!E195","v":0},0]
["MATERIAŁY EDUKACYJNE",{"$f":"'Krok 2'!B196","v":"PWN Pewny start. Instrukcje zachowań. Bezpieczeństwo na drodze"},"049284",43,{"$f":"'Krok 2'!E196","v":0},0]
["MATERIAŁY EDUKACYJNE",{"$f":"'Krok 2'!B197","v":"PWN Pewny start. Instrukcje zachowań. Choroba"},"049286",43,{"$f":"'Krok 2'!E197","v":0},0]
["MATERIAŁY EDUKACYJNE",{"$f":"'Krok 2'!B198","v":"PWN Pewny start. Instrukcje zachowań. Czas wolny"},"049288",43,{"$f":"'Krok 2'!E198","v":0},0]
["MATERIAŁY EDUKACYJNE",{"$f":"'Krok 2'!B199","v":"PWN Pewny start. Instrukcje zachowań. Dbam o swoje ciało"},"049289",43,{"$f":"'Krok 2'!E199","v":0},0]
["MATERIAŁY EDUKACYJNE",{"$f":"'Krok 2'!B200","v":"PWN Pewny start. Instrukcje zachowań. Jedzenie"},"049292",43,{"$f":"'Krok 2'!E200","v":0},0]
["MATERIAŁY EDUKACYJNE",{"$f":"'Krok 2'!B201","v":"PWN Pewny start. Instrukcje zachowań. Jestem dorosły"},"049293",43,{"$f":"'Krok 2'!E201","v":0},0]
["MATERIAŁY EDUKACYJNE",{"$f":"'Krok 2'!B202","v":"PWN Pewny start. Instrukcje zachowań. Kawiarnia"},"049294",43,{"$f":"'Krok 2'!E202","v":0},0]
["MATERIAŁY EDUKACYJNE",{"$f":"'Krok 2'!B203","v":"PWN Pewny start. Instrukcje zachowań. Kim jestem?"},"049295",43,{"$f":"'Krok 2'!E203","v":0},0]
["MATERIAŁY EDUKACYJNE",{"$f":"'Krok 2'!B204","v":"PWN Pewny start. Instrukcje zachowań. Pory roku"},"049300",43,{"$f":"'Krok 2'!E204","v":0},0]
["MATERIAŁY EDUKACYJNE",{"$f":"'Krok 2'!B205","v":"PWN Pewny start. Instrukcje zachowań. Ubranie"},"049301",43,{"$f":"'Krok 2'!E205","v":0},0]
["MATERIAŁY EDUKACYJNE",{"$f":"'Krok 2'!B206","v":"PWN Pewny start. Instrukcje zachowań. Zakupy"},"049302",43,{"$f":"'Krok 2'!E206","v":0},0]
["MATERIAŁY EDUKACYJNE",{"$f":"'Krok 2'!B207","v":"PWN Pewny start. Czytam sam. Ja i świat zwierząt"},"049093",43,{"$f":"'Krok 2'!E207","v":0},0]
["OUTLET",{"$f":"'Krok 2'!B208","v":"PWN Akademia pomysłów. Jestem za rozmową. Komiks społeczny z ćwiczeniami 2"},"049017",69,{"$f":"'Krok 2'!E208","v":0},0]
["OUTLET",{"$f":"'Krok 2'!B209","v":"PWN Akademia pomysłów. Rozwój emocjonalno-społeczny. Ja i moje ciało. Część 2"},"049002",48,{"$f":"'Krok 2'!E209","v":0},0]
["OUTLET",{"$f":"'Krok 2'!B210","v":"Pewny start. Dzisiaj w szkole. Czytanki. Poznajemy Olę i Adama"},"085781",43,{"$f":"'Krok 2'!E210","v":0},0]
["OUTLET",{"$f":"'Krok 2'!B211","v":"PWN Pewny start. Mój dobry rok. Plansze demonstracyjne. Poznaję świat"},"049409",200,{"$f":"'Krok 2'!E211","v":0},0]
["OUTLET",{"$f":"'Krok 2'!B212","v":"PWN Pewny start. O dojrzewaniu.  Dziewczęta Zestaw"},"049497",265,{"$f":"'Krok 2'!E212","v":0},0]
[]
[]
[null,null,null,"Wartość zamówienia:",null,{"$f":"SUM(H11:H26,F31:F203)","v":0}]